Workbook

Sheet Instructions
B2: AHDB Potato Storage Cost Calculator
B4: User Guide
B6: 1 | C6: Orange and Yellow Cells are for data entry.
B8: 2 | C8: Complete the only Orange cells to produce an 'Industry Costing' storage cost.
C10: 'My Data' will be populated by Industry data unless overwritten.
B12: 3 | C12: Complete the Yellow cells to produce a farm specific cost. Please note:
C14: The graphical spread of 'My Data' costs is based on the Industry data.
C16: Use the Depreciation worksheet to add capital investment.
B18: 4 | C18: The RAG (Red, Amber Green) score performance against the Industry Data.
C20: Red - 'My Data' storage cost more than 5% higher than Industry Data.
C22: Amber - 'My Data' storage cost 0 - 5% higher than Industry Data.
C24: Green - 'My Data' storage cost lower than Industry Data.
B26: 5 | C26: Reset Button will restore the standard settings (macros must be enabled on opening).
B28: ver June 2017

Sheet Data Entry
AK1: =AK3 -> Oct | AL1: =AL3 -> Nov | AM1: Dec | AN1: Jan | AO1: Feb | AP1: Mar | AQ1: Apr | AR1: May | AS1: Jun | AT1: Jul | AU1: Aug
AD2: Select whether top graph displays | AJ2: Months in store | AK2: 1 | AL2: 2 | AM2: 3 | AN2: 4 | AO2: 5 | AP2: 6 | AQ2: 7 | AR2: 8 | AS2: 9 | AT2: 10 | AU2: 11 | AV2: 12
A3: 1 | AD3: 'Industry' or 'My Data' | AJ3: Ex Field | AK3: =I23 -> Oct | AL3: =VLOOKUP(AK4+1,$V$58:$W$84,2,FALSE) -> Nov | AM3: Dec | AN3: Jan | AO3: Feb | AP3: Mar | AQ3: Apr | AR3: May | AS3: Jun | AT3: Jul | AU3: Aug | AV3: Sep
A4: 2 | AD4: My Data | AI4: Crop type drives Depreciation | AJ4: Mth No. | AK4: =VLOOKUP(AK3,$U$58:$V$84,2,FALSE) -> 3 | AL4: =AK4+1 -> 4 | AM4: =AL4+1 -> 5 | AN4: 6 | AO4: 7 | AP4: 8 | AQ4: 9 | AR4: 10 | AS4: 11 | AT4: 12 | AU4: 13
A5: 3 | AI5: Sale Price for Each period | AJ5: =I30 -> 0 | AK5: =I31 -> 0 | AL5: =I32 -> 0 | AM5: =I33 -> 0 | AN5: =I34 -> 0 | AO5: =I35 -> 0 | AP5: =I36 -> 0 | AQ5: =IF(ISBLANK($I$37),"",$I$37) ->  | AR5: =IF(ISBLANK($I$38),"",$I$38) ->  | AS5: =IF(ISBLANK($I$39),"",$I$39) ->  | AT5: =IF(ISBLANK($I$40),"",$I$40) ->  | AU5: =IF(ISBLANK($I$41),"",$I$41) -> 
A6: 4 | F6: AHDB Potato Storage Cost Calculator | AI6: Margin compared with off field price | AK6: =IF(AK$4>$C24,NA(),AK5-$AJ$5) -> 0 | AL6: 0 | AM6: 0 | AN6: 0 | AO6: 0 | AP6: 0 | AQ6: =IF(OR(AQ$4>$C24,ISBLANK($I$37)),NA(),AQ5-$AJ$5) ->  | AR6: =IF(OR(AR$4>$C24,ISBLANK($I$38)),NA(),AR5-$AJ$5) ->  | AS6: =IF(OR(AS$4>$C24,ISBLANK($I$39)),NA(),AS5-$AJ$5) ->  | AT6: =IF(OR(AT$4>$C24,ISBLANK($I$40)),NA(),AT5-$AJ$5) ->  | AU6: =IF(OR(AU$4>$C24,ISBLANK($I$41)),NA(),AU5-$AJ$5) -> 
A7: 5 | AI7: ALL CELLS REFERENCE THIS NO. | AJ7: 20
A8: 6 | F8: Store Name | M8: Cost before storage losses | R8: Industry | U8: My Data
A9: 7 | R9: Store | U9: Store | AI9: Industry Data | AJ9: LAST MONTH | AK9: =AK3 -> Oct | AL9: Nov | AM9: Dec | AN9: Jan | AO9: Feb | AP9: Mar | AQ9: Apr | AR9: May | AS9: Jun | AT9: Jul | AU9: Aug
A10: 8 | F10: Crop Type | I10: Ware | M10: Energy | R10: Total (£) | S10: £T | T10: p/kWh | U10: Total (£) | V10: £T | W10: RAG | AI10: Labour/Machinery | AK10: =IF(AK$4>$AJ$7,"",+AK127*(1+$AV$11)) -> 3.4715625 | AL10: =IF(AL$4>$AJ7,"",+AL127*(1+$AV$11)) -> 3.81871875 | AM10: 4.165875 | AN10: 4.51303125 | AO10: 4.8601875 | AP10: 5.20734375 | AQ10: 5.5545 | AR10: 5.90165625 | AS10: 6.2488125 | AT10: 6.59596875 | AU10: 6.943125 | AV10: Inc over 2010
A11: 9 | F11: Store Type | I11: Fridge | M11: Electricity | R11: =IFERROR(S11*$I$16,"") -> 8280 | S11: =IF(I9="Other","",IFERROR(HLOOKUP($I$24,$AI$3:$AU$103,A11,FALSE)," ")) -> 8.28 | T11: 9 | U11: =R11 -> 8280 | V11: =IF(ISBLANK(U11),0,U11/$I$16) -> 8.28 | W11: =IFERROR((V11-S11)/S11,"") -> 0 | AI11: Energy | AK11: =IF(AK$4>$AJ7,"",VLOOKUP($AJ$109,$AI$110:$AU$115,AK108,FALSE)*($T$11/100)) -> 1.8 | AL11: 3.42 | AM11: 4.86 | AN11: 6.12 | AO11: 7.29 | AP11: 8.28 | AQ11: 9.18 | AR11: 9.99 | AS11: 10.71 | AT11: 11.52 | AU11: =IF(AU$4>$AJ7,"",VLOOKUP($AJ$109,$AI$110:$AU$115,AW108,FALSE)*($T$11/100)) -> 12.42 | AV11: 0.05
A12: 10 | M12: Gas Heat | V12: =IF(ISBLANK(U12),0,U12/$I$16) -> 0 | W12: =IFERROR((V12-S12)/S12,"") ->  | AI12: Store Hygiene/ Chemicals | AK12: =IF(AK$4>$AJ7,"",0.2625) -> 0.2625 | AL12: 0.2625 | AM12: 0.2625 | AN12: 0.2625 | AO12: 0.2625 | AP12: 0.2625 | AQ12: 0.2625 | AR12: 0.2625 | AS12: 0.2625 | AT12: 0.2625 | AU12: 0.2625
A13: 11 | F13: Box/Bulk | I13: Bulk | AI13: Sprout Suppressant | AK13: =IF(AK$4>$AJ7,"",0) -> 0 | AL13: =IF(AL$4>$AJ7,"",0) -> 0 | AM13: =IF(AM$4>$AJ7,"",1.3) -> 1.3 | AN13: =IF(AN$4>$AJ7,"",1.3) -> 1.3 | AO13: =IF(AO$4>$AJ7,"",1.3) -> 1.3 | AP13: =IF(AP$4>$AJ7,"",2.6) -> 2.6 | AQ13: 2.6 | AR13: 2.6 | AS13: 2.6 | AT13: 2.6 | AU13: 2.6
A14: 12 | F14: Ave Box Size (Fresh T) | I14: 1 | M14: Variable Costs | AI14: Building Depn | AK14: =IF(AK$4>$AJ7,"",IF($I$10=$N$58,AK121,IF($I$10=$N$59,AK122,IF($I$10=$N$60,AK120,0)))-AK15) -> 15.652 | AL14: 15.652 | AM14: 15.652 | AN14: 15.652 | AO14: 15.652 | AP14: 15.652 | AQ14: 15.652 | AR14: 15.652 | AS14: 15.652 | AT14: 15.652 | AU14: 15.652
A15: 13 | F15: Boxes held (T if bulk) | I15: 1000 | M15: Labour/Machinery | R15: =IFERROR(S15*$I$16,"") -> 5207.34375 | S15: =IF(I9="Other","",HLOOKUP($I$24,$AI$3:$AU$103,A10,FALSE)) -> 5.20734375 | U15: =R15 -> 5207.34375 | V15: =IF(ISBLANK(U15),0,U15/$I$16) -> 5.20734375 | W15: =IFERROR((V15-S15)/S15,"") -> 0 | AI15: Box/Equip Depn | AK15: =IF(AK$4>$AJ7,"",IF($I$13="box",5.52,2.52)) -> 2.52 | AL15: 2.52 | AM15: 2.52 | AN15: 2.52 | AO15: 2.52 | AP15: 2.52 | AQ15: 2.52 | AR15: 2.52 | AS15: 2.52 | AT15: 2.52 | AU15: 2.52
A16: 14 | F16: Tonnage Stored | I16: =IF(I13=R59,I15,I15*I14) -> 1000 | M16: Third Party Handling | V16: 0 | W16: =IFERROR((V16-S16)/S16,"") ->  | AI16: Total Depn | AK16: =IF(AK$4>$AJ7,"",SUM(AK14:AK15)) -> 18.172 | AL16: 18.172 | AM16: 18.172 | AN16: 18.172 | AO16: 18.172 | AP16: 18.172 | AQ16: 18.172 | AR16: 18.172 | AS16: 18.172 | AT16: 18.172 | AU16: 18.172 | AV16: Inc over 2010 | AW16: discount from Box
A17: 15 | M17: Store Hygiene | R17: =IFERROR(S17*$I$16,"") -> 262.5 | S17: =IF(I9="Other","",HLOOKUP($I$24,$AI$3:$AU$103,A12,FALSE)) -> 0.2625 | U17: =R17 -> 262.5 | V17: 0.2625 | W17: =IFERROR((V17-S17)/S17,"") -> 0 | AI17: Property Repairs | AK17: =IF(AK$4>$AJ$7,"",IF($I$13="box",+AK128*(1+$AV$17),+AK128*(1+$AV$17)-$AW$17)) -> 0.7267 | AL17: 0.7267 | AM17: 0.7267 | AN17: 0.7267 | AO17: 0.7267 | AP17: 0.7267 | AQ17: 0.7267 | AR17: 0.7267 | AS17: 0.7267 | AT17: 0.7267 | AU17: 0.7267 | AV17: 0.03 | AW17: 2.25
A18: 16 | M18: Sprout Suppressant | R18: =IFERROR(S18*$I$16,"") -> 2600 | S18: =IF(I9="Other","",HLOOKUP($I$24,$AI$3:$AU$103,A13,FALSE)) -> 2.6 | U18: =R18 -> 2600 | V18: 2.6 | W18: =IFERROR((V18-S18)/S18,"") -> 0 | AI18: Finance | AK18: =IF(AK$4>$AJ$7,"",AK26) -> 3.402058042 | AL18: 3.434830458 | AM18: 3.49191725 | AN18: 3.54985175 | AO18: 3.617000625 | AP18: 3.716663875 | AQ18: 3.801474833 | AR18: 3.892200167 | AS18: 3.987939875 | AT18: 4.093793958 | AU18: 4.210662417
A19: 17 | F19: Ex Field Yield | I19: 45 | J19: T/Ha | AI19: 3rd Party Rent
A20: 18 | M20: Fixed Costs | AI20: Total Storage Costs before losses | AK20: =IF(AK$4>$C24,NA(),SUM(AK10:AK15,AK17:AK19)) -> 27.83482054 | AL20: 29.83474921 | AM20: 32.97899225 | AN20: 34.644083 | AO20: 36.22838813 | AP20: 38.96520763
A21: 19 | F21: Interest Rate | I21: 0.02 | M21: Depreciation
A22: 20 | C22: mth ref | O22: Building | R22: =IFERROR(S22*$I$16,"") -> 15652 | S22: =IF(I9="Other","",HLOOKUP($I$24,$AI$3:$AU$103,A14,FALSE)) -> 15.652 | U22: =IF(ISBLANK(V22),"",V22*$I$16) -> 15652 | V22: =IFERROR(IF(+Depreciation!H18<=0,S22,+Depreciation!H18),0) -> 15.652 | W22: =IFERROR((V22-S22)/S22,"") -> 0
A23: 21 | C23: =VLOOKUP(I23,$U$58:$V$84,2,FALSE) -> 3 | F23: Store Loading | I23: Oct | J23: Months | O23: Box & Fixed Equip. | R23: =IFERROR(S23*$I$16,"") -> 2520 | S23: =IF(I9="Other","",HLOOKUP($I$24,$AI$3:$AU$103,A15,FALSE)) -> 2.52 | U23: =IF(ISBLANK(V23),"",V23*$I$16) -> 2520 | V23: =IFERROR(IF(+Depreciation!H35+Depreciation!H53<=0,S23,+Depreciation!H19),0) -> 2.52 | W23: =IFERROR((V23-S23)/S23,"") -> 0 | AI23: Finance | AJ23: Crop | AK23: =IFERROR(AK5*AK2*($I$21/12),0) -> 0 | AL23: 0 | AM23: 0 | AN23: 0 | AO23: 0 | AP23: 0 | AQ23: 0 | AR23: 0 | AS23: 0 | AT23: 0 | AU23: 0
A24: 22 | C24: =VLOOKUP(I24,$U$58:$V$84,2,FALSE) -> 8 | F24: Store Outloading | I24: Mar | J24: =HLOOKUP(I24,AK1:AU3,2,FALSE) -> 6 | M24: Property Repairs | R24: =IFERROR(S24*$I$16,"") -> 726.7 | S24: =IF(I9="Other","",HLOOKUP($I$24,$AI$3:$AU$103,A17,FALSE)) -> 0.7267 | U24: =R24 -> 726.7 | V24: =IF(ISBLANK(U24),0,U24/$I$16) -> 0.7267 | W24: =IFERROR((V24-S24)/S24,"") -> 0 | AJ24: WC | AK24: =SUM(AK10:AK13,AK10:AK13,AK17,AK19)*AK2*($I$21/12) -> 0.01965804167 | AL24: 0.05243045833 | AM24: 0.10951725 | AN24: 0.16745175 | AO24: 0.234600625 | AP24: 0.334263875 | AQ24: 0.4190748333 | AR24: 0.5098001667 | AS24: 0.605539875 | AT24: 0.7113939583 | AU24: 0.8282624167
A25: 23 | I25: =IF((C24-C23)>10,"Error, Maximum Storage Period 11 Months","") ->  | M25: incl. Servicing & Box Repairs | AJ25: Fixed | AK25: =($S22*20*50/100*$I$21)+($S23*10*50/100*$I$21) -> 3.3824 | AL25: 3.3824 | AM25: 3.3824 | AN25: 3.3824 | AO25: 3.3824 | AP25: 3.3824 | AQ25: 3.3824 | AR25: 3.3824 | AS25: 3.3824 | AT25: 3.3824 | AU25: 3.3824
A26: 24 | M26: 3rd Party Rent | V26: =IF(ISBLANK(U26),0,U26/$I$16) -> 0 | W26: =IFERROR((V26-S26)/S26,"") ->  | AJ26: Total | AK26: =SUM(AK23:AK25) -> 3.402058042 | AL26: =SUM(AL23:AL25) -> 3.434830458 | AM26: 3.49191725 | AN26: 3.54985175 | AO26: 3.617000625 | AP26: 3.716663875 | AQ26: 3.801474833 | AR26: 3.892200167 | AS26: 3.987939875 | AT26: 4.093793958 | AU26: 4.210662417
A27: 25
A28: 26 | F28: Sale Price | H28: Timing | I28: £T | M28: Finance Costs
A29: 27 | O29: Crop | R29: =IFERROR(S29*$I$16,"") -> 0 | S29: =IF(I9="Other","",HLOOKUP($I$24,$AI$3:$AU$103,A23,FALSE)) -> 0 | AI29: Grower Data | AJ29: LAST MONTH | AK29: =AK9 -> Oct | AL29: =AL9 -> Nov | AM29: Dec | AN29: Jan | AO29: Feb | AP29: Mar | AQ29: Apr | AR29: May | AS29: Jun | AT29: Jul | AU29: Aug | AW29: GROWER DATA PROPORTIONAL ANALYSIS | AY29: =+AK29 -> Oct | AZ29: =+AL29 -> Nov | BA29: Dec | BB29: Jan | BC29: Feb | BD29: Mar | BE29: Apr | BF29: May | BG29: Jun | BH29: Jul | BI29: =+AU29 -> Aug
A30: 28 | H30: Off Field | O30: Overhead Costs* | R30: =IFERROR(S30*$I$16,"") -> 334.263875 | S30: =IF(I10="Other","",HLOOKUP($I$24,$AI$3:$AU$103,A24,FALSE)) -> 0.334263875 | AI30: Labour/Machinery incl. 3rd Party Handling | AK30: =+AY30 -> 3.4715625 | AL30: =+AZ30 -> 3.81871875 | AM30: 4.165875 | AN30: 4.51303125 | AO30: 4.8601875 | AP30: 5.20734375 | AQ30: 0 | AR30: 0 | AS30: 0 | AT30: 0 | AU30: 0 | AW30: Labour/Machinery | AY30: =IF(AK$4<=$C$24,AK10,0) -> 3.4715625 | AZ30: =IF(AL$4<=$C$24,AL10,0) -> 3.81871875 | BA30: 4.165875 | BB30: 4.51303125 | BC30: 4.8601875 | BD30: 5.20734375 | BE30: 0 | BF30: 0 | BG30: 0 | BH30: 0 | BI30: 0 | BJ30: =SUM(AY30:BI30) -> 26.03671875
A31: 29 | H31: =AK3 -> Oct | O31: Building/Fixed Plant | R31: =IFERROR(S31*$I$16,"") -> 3382.4 | S31: =IF(I11="Other","",HLOOKUP($I$24,$AI$3:$AU$103,A25,FALSE)) -> 3.3824 | AI31: Energy | AK31: =+AY31 -> 1.8 | AL31: 3.42 | AM31: 4.86 | AN31: 6.12 | AO31: 7.29 | AP31: 8.28 | AQ31: 0 | AR31: 0 | AS31: 0 | AT31: 0 | AU31: 0 | AW31: Electricity | AY31: =IF(AK$4<=$C$24,AK11,0) -> 1.8 | AZ31: =IF(AL$4<=$C$24,AL11,0) -> 3.42 | BA31: 4.86 | BB31: 6.12 | BC31: 7.29 | BD31: 8.28 | BE31: 0 | BF31: 0 | BG31: 0 | BH31: 0 | BI31: 0 | BJ31: =SUM(AY31:BI31) -> 31.77
A32: 30 | H32: =AL3 -> Nov | O32: Total Finance | R32: =IFERROR(S32*$I$16,"") -> 3716.663875 | S32: =IF(I9="Other","",IFERROR(HLOOKUP($I$24,$AI$3:$AU$103,A26,FALSE)," ")) -> 3.716663875 | U32: =R32 -> 3716.663875 | V32: =IF(ISBLANK(U32),"",U32/$I$16) -> 3.716663875 | W32: =IFERROR((V32-S32)/S32,"") -> 0 | AI32: Store Hygiene/ Chemicals | AK32: 0.2625 | AL32: 0.2625 | AM32: 0.2625 | AN32: 0.2625 | AO32: 0.2625 | AP32: 0.2625 | AQ32: 0 | AR32: 0 | AS32: 0 | AT32: 0 | AU32: 0 | AW32: Store Hygiene/ Chemicals | AY32: =IF(AK$4<=$C$24,AK12,0) -> 0.2625 | AZ32: =IF(AL$4<=$C$24,AL12,0) -> 0.2625 | BA32: 0.2625 | BB32: 0.2625 | BC32: 0.2625 | BD32: 0.2625 | BE32: 0 | BF32: 0 | BG32: 0 | BH32: 0 | BI32: 0 | BJ32: 1.575
A33: 31 | H33: =AM3 -> Dec | AI33: Sprout Suppressant | AK33: =+AY33 -> 0 | AL33: 0 | AM33: 1.3 | AN33: 1.3 | AO33: 1.3 | AP33: 2.6 | AQ33: 0 | AR33: 0 | AS33: 0 | AT33: 0 | AU33: 0 | AW33: Sprout Suppressant | AY33: =IF(AK$4<=$C$24,AK13,0) -> 0 | AZ33: =IF(AL$4<=$C$24,AL13,0) -> 0 | BA33: 1.3 | BB33: 1.3 | BC33: 1.3 | BD33: 2.6 | BE33: 0 | BF33: 0 | BG33: 0 | BH33: 0 | BI33: 0 | BJ33: 6.5
A34: 32 | H34: =AN3 -> Jan | M34: Total Storage Cost: based on Fresh Tonnes | AI34: Building Depn | AK34: =$V22 -> 15.652 | AL34: 15.652 | AM34: 15.652 | AN34: 15.652 | AO34: 15.652 | AP34: 15.652 | AQ34: 15.652 | AR34: 15.652 | AS34: 15.652 | AT34: 15.652 | AU34: 15.652 | AW34: Building Depn | BJ34: 0
A35: 33 | H35: =AO3 -> Feb | M35: £ per Tonne Stored | R35: =S35*$I$16 -> 38965.20762 | S35: =IFERROR(+S32+S24+S23+S22+S18+S17+S11+S15,0) -> 38.96520762 | U35: =+U32+U24+U23+U22+U18+U17+U11+U15+U16+U26+U12 -> 38965.20763 | V35: =IF(ISBLANK(U35),"",U35/$I$16) -> 38.96520763 | W35: =IFERROR((V35-S35)/S35,"") -> 1.823531245e-16 | AI35: Box/Equip Depn | AK35: =$V23 -> 2.52 | AL35: 2.52 | AM35: 2.52 | AN35: 2.52 | AO35: 2.52 | AP35: 2.52 | AQ35: 2.52 | AR35: 2.52 | AS35: 2.52 | AT35: 2.52 | AU35: 2.52 | AW35: Box/Equip Depn | BJ35: 0
A36: 34 | H36: =AP3 -> Mar | M36: ="Fresh Yield "&J19 -> Fresh Yield T/Ha | S36: =I19 -> 45 | V36: =+I19 -> 45 | W36: =IFERROR((V36-S36)/S36,"") -> 0 | AI36: Total Depn | AK36: =SUM(AK34:AK35) -> 18.172 | AL36: =SUM(AL34:AL35) -> 18.172 | AM36: 18.172 | AN36: 18.172 | AO36: 18.172 | AP36: 18.172 | AQ36: 18.172 | AR36: 18.172 | AS36: 18.172 | AT36: 18.172 | AU36: 18.172 | AW36: Total Depn | BJ36: 0
A37: 35 | H37: =AQ3 -> Apr | AI37: Property Repairs | AK37: =+$V$24 -> 0.7267 | AL37: =+$V$24 -> 0.7267 | AM37: 0.7267 | AN37: 0.7267 | AO37: 0.7267 | AP37: 0.7267 | AQ37: 0.7267 | AR37: 0.7267 | AS37: 0.7267 | AT37: 0.7267 | AU37: 0.7267 | AW37: Property Repairs | AY37: =IF(AK$4<=$C$24,AK17,0) -> 0.7267 | AZ37: =IF(AL$4<=$C$24,AL17,0) -> 0.7267 | BA37: 0.7267 | BB37: 0.7267 | BC37: 0.7267 | BD37: 0.7267 | BE37: 0 | BF37: 0 | BG37: 0 | BH37: 0 | BI37: 0 | BJ37: 4.3602
A38: 36 | H38: =AR3 -> May | M38: Calculated Storage Cost per Tonne Sold | AI38: Finance | AK38: =IF(AK$4>$AJ$7,"",AK46) -> 3.402058042 | AL38: =IF(AL$4>$AJ$7,"",AL46) -> 3.434830458 | AM38: 3.49191725 | AN38: 3.54985175 | AO38: 3.617000625 | AP38: 3.716663875 | AQ38: 3.390878167 | AR38: 3.392089333 | AS38: 3.3933005 | AT38: 3.394511667 | AU38: 3.395722833 | AW38: Finance | AY38: =IF(AK$4<=$C$24,AK18,0) -> 3.402058042 | AZ38: =IF(AL$4<=$C$24,AL18,0) -> 3.434830458 | BA38: 3.49191725 | BB38: 3.54985175 | BC38: 3.617000625 | BD38: 3.716663875 | BE38: 0 | BF38: 0 | BG38: 0 | BH38: 0 | BI38: 0 | BJ38: 21.212322
A39: 37 | H39: =AS3 -> Jun | M39: Estimated Storage Losses | R39: £ Total | S39: £T | T39: % | U39: £ Total | V39: £T | W39: % | AI39: 3rd Party Rent | AK39: =$V$26 -> 0 | AL39: =$V$26 -> 0 | AM39: 0 | AN39: 0 | AO39: 0 | AP39: 0 | AQ39: 0 | AR39: 0 | AS39: 0 | AT39: 0 | AU39: 0 | AW39: 3rd Party Rent | BJ39: 0
A40: 38 | H40: =AT3 -> Jul | M40: Rejection/Packout ** | R40: =S40*$I$16 -> 0 | S40: =$I$30*AV99 -> 0 | T40: =HLOOKUP($I$24,$AI$3:$AU$103,A99,FALSE) -> 0.055 | U40: =V40*$I$16 -> 0 | V40: =$I$30*W40 -> 0 | W40: =T40 -> 0.055 | AI40: Total Storage Costs before losses | AK40: =IF(AK$4>$C24,NA(),SUM(AK30:AK35,AK37:AK39)) -> 27.83482054 | AL40: =IF(AL$4>$C24,NA(),SUM(AL30:AL35,AL37:AL39)) -> 29.83474921 | AM40: 32.97899225 | AN40: 34.644083 | AO40: 36.22838813 | AP40: 38.96520763 | AW40: Total Storage Costs before losses | BJ40: 0
A41: 39 | H41: =AU3 -> Aug | M41: W/Loss, Storage & Grading | R41: 0 | S41: =$I$30*AV100 -> 0 | T41: =HLOOKUP($I$24,$AI$3:$AU$103,A100,FALSE) -> 0.08 | U41: 0 | V41: =$I$30*W41 -> 0 | W41: =T41 -> 0.08 | BJ41: 0
A42: 40 | M42: Contract Allowances | S42: =$I$30*T42 -> 0 | T42: -0.05 | V42: =$I$30*W42 -> 0 | W42: =T42 -> -0.05
A43: 41 | M43: Total | R43: 0 | S43: =SUM(S40:S42) -> 0 | U43: 0 | V43: =IF(SUM(V40:V42)<0,0,SUM(V40:V42)) -> 0 | AI43: Finance | AJ43: Crop | AK43: =IFERROR(AK5*AK2*($I$21/12),0) -> 0 | AL43: =IFERROR(AL5*AL2*($I$21/12),0) -> 0 | AM43: 0 | AN43: 0 | AO43: 0 | AP43: 0 | AQ43: 0 | AR43: 0 | AS43: 0 | AT43: 0 | AU43: 0
A44: 42 | AJ44: WC | AK44: =SUM(AK30:AK33,AK30:AK33,AK37,AK39)*AK2*($I$21/12) -> 0.01965804167 | AL44: =SUM(AL30:AL33,AL30:AL33,AL37,AL39)*AL2*($I$21/12) -> 0.05243045833 | AM44: 0.10951725 | AN44: 0.16745175 | AO44: 0.234600625 | AP44: 0.334263875 | AQ44: 0.008478166667 | AR44: 0.009689333333 | AS44: 0.0109005 | AT44: 0.01211166667 | AU44: 0.01332283333
A45: 43 | M45: Total Storage Cost: based on Ex-store Tonnes | Y45: See separate graph for breakdown by category | AJ45: Fixed | AK45: =($S22*20*50/100*$I$21)+($S23*10*50/100*$I$21) -> 3.3824 | AL45: 3.3824 | AM45: 3.3824 | AN45: 3.3824 | AO45: 3.3824 | AP45: 3.3824 | AQ45: 3.3824 | AR45: 3.3824 | AS45: 3.3824 | AT45: 3.3824 | AU45: 3.3824
A46: 44 | M46: £ per tonne Sold | R46: =S46*$I$16 -> 38965.20762 | S46: =S35+S43 -> 38.96520762 | V46: =V35+V43 -> 38.96520763 | W46: =IFERROR((V46-S46)/S46,"") -> 1.823531245e-16 | AJ46: Total | AK46: =SUM(AK43:AK45) -> 3.402058042 | AL46: =SUM(AL43:AL45) -> 3.434830458 | AM46: 3.49191725 | AN46: 3.54985175 | AO46: 3.617000625 | AP46: 3.716663875 | AQ46: 3.390878167 | AR46: 3.392089333 | AS46: 3.3933005 | AT46: 3.394511667 | AU46: 3.395722833
A47: 45 | M47: ="Sold Tonnes "&J19 -> Sold Tonnes T/Ha | S47: =I19-((T40+T41+T42)*I19) -> 41.175 | V47: =I19-((W40+W41+W42)*I19) -> 41.175 | W47: 0
A48: 46 | AI48: BAR CHART SOURCE DATA - | AJ48: =+AD4 -> My Data
A49: 47 | M49: * excluding depreciation | AI49: Total Storage Cost Graph (table created so that if there were missing elements of data, the graph would not function)
A50: 48 | M50: **over and above contract allowance | Y50: Energy usage figures based on AHDB Potatoes Farm Energy Project (2011) | AI50: Labour/Machinery | AK50: =IF($AD$4="Industry",IF(ISERROR(AK$20),NA(),AK10),IF(ISERROR(AK$40),NA(),AK30)) -> 3.4715625 | AL50: =IF($AD$4="Industry",IF(ISERROR(AL$20),NA(),AL10),IF(ISERROR(AL$40),NA(),AL30)) -> 3.81871875 | AM50: 4.165875 | AN50: 4.51303125 | AO50: 4.8601875 | AP50: 5.20734375
A51: 49 | AI51: Energy | AK51: =IF($AD$4="Industry",IF(ISERROR(AK$20),NA(),AK11),IF(ISERROR(AK$40),NA(),AK31)) -> 1.8 | AL51: =IF($AD$4="Industry",IF(ISERROR(AL$20),NA(),AL11),IF(ISERROR(AL$40),NA(),AL31)) -> 3.42 | AM51: 4.86 | AN51: 6.12 | AO51: 7.29 | AP51: 8.28
A52: 50 | AI52: Store Hygiene/ Chemicals | AK52: =IF($AD$4="Industry",IF(ISERROR(AK$20),NA(),AK12),IF(ISERROR(AK$40),NA(),AK32)) -> 0.2625 | AL52: =IF($AD$4="Industry",IF(ISERROR(AL$20),NA(),AL12),IF(ISERROR(AL$40),NA(),AL32)) -> 0.2625 | AM52: 0.2625 | AN52: 0.2625 | AO52: 0.2625 | AP52: 0.2625
A53: 51 | AI53: Sprout Suppressant | AK53: =IF($AD$4="Industry",IF(ISERROR(AK$20),NA(),AK13),IF(ISERROR(AK$40),NA(),AK33)) -> 0 | AL53: =IF($AD$4="Industry",IF(ISERROR(AL$20),NA(),AL13),IF(ISERROR(AL$40),NA(),AL33)) -> 0 | AM53: 1.3 | AN53: 1.3 | AO53: 1.3 | AP53: 2.6
A54: 52 | AI54: Total Depn | AK54: =IF($AD$4="Industry",IF(ISERROR(AK$20),NA(),AK16),IF(ISERROR(AK$40),NA(),AK36)) -> 18.172 | AL54: =IF($AD$4="Industry",IF(ISERROR(AL$20),NA(),AL16),IF(ISERROR(AL$40),NA(),AL36)) -> 18.172 | AM54: 18.172 | AN54: 18.172 | AO54: 18.172 | AP54: 18.172
A55: 53 | AI55: Property Repairs | AK55: =IF($AD$4="Industry",IF(ISERROR(AK$20),NA(),AK17),IF(ISERROR(AK$40),NA(),AK37)) -> 0.7267 | AL55: =IF($AD$4="Industry",IF(ISERROR(AL$20),NA(),AL17),IF(ISERROR(AL$40),NA(),AL37)) -> 0.7267 | AM55: 0.7267 | AN55: 0.7267 | AO55: 0.7267 | AP55: 0.7267
A56: 54 | F56: PLEASE ENABLE MACROS | AI56: Finance | AK56: =IF($AD$4="Industry",IF(ISERROR(AK$20),NA(),AK18),IF(ISERROR(AK$40),NA(),AK38)) -> 3.402058042 | AL56: =IF($AD$4="Industry",IF(ISERROR(AL$20),NA(),AL18),IF(ISERROR(AL$40),NA(),AL38)) -> 3.434830458 | AM56: 3.49191725 | AN56: 3.54985175 | AO56: 3.617000625 | AP56: 3.716663875
A57: 55 | B57: LOOK UP TABLES | S57: loading | U57: spread | Z57: RESET FORM | AD57: box size | AI57: 3rd Party Rent | AK57: =IF($AD$4="Industry",IF(ISERROR(AK$20),NA(),AK19),IF(ISERROR(AK$40),NA(),AK39)) -> 0 | AL57: =IF($AD$4="Industry",IF(ISERROR(AL$20),NA(),AL19),IF(ISERROR(AL$40),NA(),AL39)) -> 0 | AM57: 0 | AN57: 0 | AO57: 0 | AP57: 0
A58: 56 | J58: Industry | M58: 1 | N58: Ware | P58: Potatoes | R58: Box | S58: Aug | U58: Aug | V58: 1 | W58: Aug | AK58: =SUM(AK50:AK57) -> 27.83482054 | AL58: =SUM(AL50:AL57) -> 29.83474921 | AM58: 32.97899225 | AN58: 34.644083 | AO58: 36.22838813 | AP58: 38.96520763
A59: 57 | B59: Ambient | J59: My Data | M59: 2 | N59: Processing | P59: Other | R59: Bulk | S59: Sep | U59: Sep | V59: 2 | W59: Sep | Z59: Electricity Price | AB59: 12 | AD59: 1
A60: 58 | B60: Fridge | M60: 3 | N60: Seed | S60: Oct | U60: Oct | V60: 3 | W60: Oct | Z60: First Storage Month | AB60: Oct | AD60: 1.1
A61: 59 | M61: 4 | S61: Nov | U61: Nov | V61: 4 | W61: Nov | Z61: Last Storage Month | AB61: Mar | AD61: 1.25
A62: 60 | M62: 5 | S62: Dec | U62: Dec | V62: 5 | W62: Dec | Z62: Store Suppressant | AB62: =$H$66*$G$66 -> 0 | AC62: 1 | AD62: 1.5
A63: 61 | M63: 6 | S63: Jan | U63: Jan | V63: 6 | W63: Jan | AB63: =$H$67*$G$67 -> 0 | AC63: 2 | AD63: 2
A64: 62 | F64: Manual Sprout Suppressant costings | M64: 7 | S64: Feb | U64: Feb | V64: 7 | W64: Feb | AB64: =$H$68*$G$68 -> 0 | AC64: 3 | AD64: 2.25
A65: 63 | G65: No of Apps | H65: Cost/App (£/T) | I65: Total £/T | M65: 8 | S65: Mar | U65: Mar | V65: 8 | W65: Mar | AB65: =$H$69*$G$69 -> 0 | AC65: 4 | AD65: 2.5
A66: 64 | F66: CIPC | I66: =+H66*G66 -> 0 | M66: 9 | S66: Apr | U66: Apr | V66: 9 | W66: Apr
A67: 65 | F67: Ethylene | I67: =+H67*G67 -> 0 | M67: 10 | S67: May | U67: May | V67: 10 | W67: May | Z67: RESET BOX
A68: 66 | F68: Mint Oil | I68: =+H68*G68 -> 0 | M68: 11 | S68: Jun | U68: Jun | V68: 11 | W68: Jun
A69: 67 | F69: Other | I69: =+H69*G69 -> 0 | M69: 12 | S69: Jul | U69: Jul | V69: 12 | W69: Jul | Z69: to put electricity price back to standard, relink Depreciation,
A70: 68 | U70: Aug | V70: 13 | W70: Aug
A71: 69 | U71: Sep | V71: 14 | W71: Sep | Z71: standardise storage period from Oct to Mar, reset store suppressant
A72: 70 | U72: Oct | V72: 15 | W72: Oct
A73: 71 | U73: Nov | V73: 16 | W73: Nov | AI73: LINE GRAPH SOURCE DATA
A74: 72 | F74: MAKE A COPY OF THIS TAB (& THE DEPRECIATION ONE) & RESET THE FORM | U74: Dec | V74: 17 | W74: Dec | AI74: Margin compared with off field price | AK74: =AK6 -> 0 | AL74: =AL6 -> 0 | AM74: 0 | AN74: 0 | AO74: 0 | AP74: 0
A75: 73 | U75: Jan | V75: 18 | W75: Jan | AI75: Total Storage Costs before losses | AK75: =IF($AD$4="Automatic",AK20,AK40) -> 27.83482054 | AL75: 29.83474921 | AM75: 32.97899225 | AN75: 34.644083 | AO75: 36.22838813 | AP75: 38.96520763
A76: 74 | U76: Feb | V76: 19 | W76: Feb | AI76: Total Storage Costs after losses & allowances | AK76: =IF($AD$4="Automatic",AK105,AK$106) -> 27.83482054 | AL76: 29.83474921 | AM76: 32.97899225 | AN76: 34.644083 | AO76: 36.22838813 | AP76: 38.96520763
A77: 75 | U77: Mar | V77: 20 | W77: Mar
A78: 76 | U78: Apr | V78: 21 | W78: Apr
A79: 77 | F79: T/Ha | U79: May | V79: 22 | W79: May | AI79: LINE CHART TITLE | AK79: ="Margin compared with Storage Cost £T "&"("&AD4&")" -> Margin compared with Storage Cost £T (My Data)
A80: 78 | F80: T/Ac | U80: Jun | V80: 23 | W80: Jun | AI80: BAR CHART TITLE | AK80: ="Total Storage Cost before losses £T "&"("&AD4&")" -> Total Storage Cost before losses £T (My Data)
A81: 79 | U81: Jul | V81: 24 | W81: Jul
A82: 80 | U82: Aug | V82: 25 | W82: Aug
A83: 81 | U83: Sep | V83: 26 | W83: Sep
A84: 82 | U84: Oct | V84: 27 | W84: Oct
A85: 83
A86: 84
A87: 85
A88: 86
A89: 87
A90: 88
A91: 89
A92: 90
A93: 91
A94: 92
A95: 93
A96: 94
A97: 95 | AI97: Details for Fresh/Sold Yield Losses Graph
A98: 96 | AK98: 1 | AL98: 2 | AM98: 3 | AN98: 4 | AO98: 5 | AP98: 6 | AQ98: 7 | AR98: 8 | AS98: 9 | AT98: 10 | AU98: 11
A99: 97 | AI99: Losses from Rejection/Packout | AK99: 0.03 | AL99: 0.035 | AM99: 0.04 | AN99: 0.045 | AO99: 0.05 | AP99: 0.055 | AQ99: 0.06 | AR99: 0.065 | AS99: 0.07 | AT99: 0.075 | AU99: 0.08 | AV99: =HLOOKUP($I$24,$AI$3:$AU$103,A99,FALSE) -> 0.055
A100: 98 | AI100: Storage and Grading Out losses | AK100: 0.03 | AL100: 0.04 | AM100: 0.05 | AN100: 0.06 | AO100: 0.07 | AP100: 0.08 | AQ100: 0.09 | AR100: 0.1 | AS100: 0.11 | AT100: 0.12 | AU100: 0.13 | AV100: =HLOOKUP($I$24,$AI$3:$AU$103,A100,FALSE) -> 0.08
A101: 99 | AN101: was | AO101: 0.09 | AP101: 0.11 | AQ101: 0.13 | AR101: 0.15 | AS101: 0.17 | AT101: 0.19 | AU101: 0.21
A102: 100 | AI102: Total of Grading out and Rej/Packout | AK102: =SUM(AK99:AK100) -> 0.06 | AL102: 0.075 | AM102: 0.09 | AN102: 0.105 | AO102: 0.12 | AP102: 0.135 | AQ102: 0.15 | AR102: 0.165 | AS102: 0.18 | AT102: 0.195 | AU102: 0.21 | AV102: 0.135
A103: 101 | AI103: Cost £T of losses | AK103: =AK102*$I$30 -> 0 | AL103: 0 | AM103: 0 | AN103: 0 | AO103: 0 | AP103: 0 | AQ103: 0 | AR103: 0 | AS103: 0 | AT103: 0 | AU103: 0
A104: 102
A105: 103 | AH105: INDUSTRY | AI105: Total Storage Costs after losses & allowances | AK105: =IF(AK$4>$C24,NA(),AK103+AK20+$S$42) -> 27.83482054 | AL105: 29.83474921 | AM105: 32.97899225 | AN105: 34.644083 | AO105: 36.22838813 | AP105: 38.96520763
A106: 104 | AH106: MY DATA | AI106: Total Storage Costs after losses & allowances | AK106: =IF(AK$4>$C24,NA(),AK103+AK40+$V$42) -> 27.83482054 | AL106: 29.83474921 | AM106: 32.97899225 | AN106: 34.644083 | AO106: 36.22838813 | AP106: 38.96520763
A107: 105
A108: 106 | AI108: 1 | AJ108: 2 | AK108: 3 | AL108: 4 | AM108: 5 | AN108: 6 | AO108: 7 | AP108: 8 | AQ108: 9 | AR108: 10 | AS108: 11 | AT108: 12 | AW108: 13
A109: 107 | AI109: kwh per tonne (culmulative) | AJ109: =I10&" "&I11 -> Ware Fridge
A110: 108 | AI110: Seed Ambient
A111: 109 | AI111: Seed Fridge | AK111: 16 | AL111: 30 | AM111: 42 | AN111: 51.90641975 | AO111: 60.90641975 | AP111: 69.90641975
A112: 110 | AI112: Ware Ambient | AK112: 9 | AL112: 16 | AM112: 21 | AN112: 25 | AO112: 28 | AP112: 31 | AQ112: 33 | AR112: 35 | AS112: 37 | AT112: 39 | AU112: 41
A113: 111 | AI113: Ware Fridge | AK113: 20 | AL113: 38 | AM113: 54 | AN113: 68 | AO113: 81 | AP113: 92 | AQ113: 102 | AR113: 111 | AS113: 119 | AT113: 128 | AU113: 138
A114: 112 | AI114: Processing Ambient | AK114: 9 | AL114: 16 | AM114: 21 | AN114: 25 | AO114: 28 | AP114: 31 | AQ114: 33 | AR114: 35 | AS114: 37 | AT114: 39 | AU114: 41
A115: 113 | AI115: Processing Fridge | AK115: 12 | AL115: 20 | AM115: 28 | AN115: 35 | AO115: 40 | AP115: 44 | AQ115: 47 | AR115: 50 | AS115: 53 | AT115: 56 | AU115: 60
A116: 114 | AI116: Months in Store | AK116: 1 | AL116: 2 | AM116: 3 | AN116: 4 | AO116: 5 | AP116: 6 | AQ116: 7 | AR116: 8 | AS116: 9 | AT116: 10
A117: 115 | AI117: ELECTRICITY USAGE CARRIED FORWARD TO ELECTRICITY PAGE
A118: 116 | AI118: Electricity | AK118: =IF(AK$4>$AJ7,"",VLOOKUP($AJ$109,$AI$110:$AU$115,AK108,FALSE)) -> 20 | AL118: 38 | AM118: 54 | AN118: 68 | AO118: 81 | AP118: 92 | AQ118: 102 | AR118: 111 | AS118: 119 | AT118: 128
A119: 117 | AI119: Depreciation - Automatic | AL119: need to show workings??
A120: 118 | AI120: Seed - refrig | AK120: =16.52*1.1 -> 18.172 | AL120: =16.52*1.1 -> 18.172 | AM120: 18.172 | AN120: 18.172 | AO120: 18.172 | AP120: 18.172 | AQ120: 18.172 | AR120: 18.172 | AS120: 18.172 | AT120: 18.172 | AU120: 18.172 | AV120: increased by 10%
A121: 119 | AI121: Ware - refirg | AK121: =16.52*1.1 -> 18.172 | AL121: 18.172 | AM121: 18.172 | AN121: 18.172 | AO121: 18.172 | AP121: 18.172 | AQ121: 18.172 | AR121: 18.172 | AS121: 18.172 | AT121: 18.172 | AU121: 18.172 | AV121: increased by 10%
A122: 120 | AI122: Processing refrig | AK122: 18.172 | AL122: 18.172 | AM122: 18.172 | AN122: 18.172 | AO122: 18.172 | AP122: 18.172 | AQ122: 18.172 | AR122: 18.172 | AS122: 18.172 | AT122: 18.172 | AU122: 18.172 | AV122: increased by 10%
A123: 121
AI127: Labour/Machinery (2010) | AK127: 3.30625 | AL127: 3.636875 | AM127: 3.9675 | AN127: 4.298125 | AO127: 4.62875 | AP127: 4.959375 | AQ127: 5.29 | AR127: 5.620625 | AS127: 5.95125 | AT127: 6.281875 | AU127: 6.6125
AI128: Property Repairs (2010) | AK128: 2.89 | AL128: 2.89 | AM128: 2.89 | AN128: 2.89 | AO128: 2.89 | AP128: 2.89 | AQ128: 2.89 | AR128: 2.89 | AS128: 2.89 | AT128: 2.89 | AU128: 2.89

Sheet Depreciation
A1: Depreciation
A2: Building, Machinery and Box Depreciation | D2: Store Capacity | F2: ='Data Entry'!I16 -> 1000 | G2: Tonnes
A3: Current Year | B3: 2017
A4: Descriptions | B4: Purchase Price/Value (£) | C4: Year Purchased/Valued | D4: Depreciation Rate (years) Straight line | E4: Year End Value (£) | G4: Current Year Depreciation (£) | H4: Depn./Tonne (£) | I4: not to be shown
A5: Building
G6: =IF(I6<0,J6,0) -> 0 | H6: =IFERROR(G6/$F$2,0) -> 0 | I6: =$B$3-(C6+DefProCalBoxRefDep1) -> 2017 | J6: =B6/DefProCalBoxRefDep1 -> 
G7: =IF(I7<0,J7,0) -> 0 | H7: =IFERROR(G7/$F$2,0) -> 0 | I7: =$B$3-(C7+DefProCalBoxRefDep2) -> 2017 | J7: =B7/DefProCalBoxRefDep2 -> 
G8: 0 | H8: 0 | I8: =$B$3-(C8+DefProCalBoxRefDep3) -> 2017 | J8: =B8/DefProCalBoxRefDep3 -> 
G9: 0 | H9: 0 | I9: =$B$3-(C9+DefProCalBoxRefDep4) -> 2017 | J9: =B9/DefProCalBoxRefDep4 -> 
G10: 0 | H10: 0 | I10: =$B$3-(C10+DefProCalBoxRefDep5) -> 2017 | J10: =B10/DefProCalBoxRefDep5 -> 
G11: 0 | H11: 0 | I11: =$B$3-(C11+DefProCalBoxRefDep6) -> 2017 | J11: =B11/DefProCalBoxRefDep6 -> 
G12: 0 | H12: 0 | I12: =$B$3-(C12+DefProCalBoxRefDep7) -> 2017 | J12: =B12/DefProCalBoxRefDep7 -> 
G13: 0 | H13: 0 | I13: =$B$3-(C13+DefProCalBoxRefDep8) -> 2017 | J13: =B13/DefProCalBoxRefDep8 -> 
A14: If grant funding has been received, the benefit should be entered below (as negative) | G14: 0 | H14: 0 | I14: =$B$3-(C14+DefProCalBoxRefDep9) -> 2017 | J14: =B14/DefProCalBoxRefDep9 -> 
G15: 0 | H15: 0 | I15: =$B$3-(C15+DefProCalBoxRefDep10) -> 2017 | J15: =B15/DefProCalBoxRefDep10 -> 
G16: 0 | H16: 0 | I16: =$B$3-(C16+DefProCalBoxRefDep11) -> 2017 | J16: =B16/DefProCalBoxRefDep11 -> 
G17: 0 | H17: 0 | I17: =$B$3-(C17+DefProCalBoxRefDep12) -> 2017 | J17: =B17/DefProCalBoxRefDep12 -> 
F18: Total Depn. | G18: =SUM(G6:G17) -> 0 | H18: 0
A20: Descriptions | B20: Purchase Price/Value (£) | C20: Year Purchased/Valued | D20: Depreciation Rate % (Reducing Balance) | E20: Year End Value (£) | F20: Proportion to be charged | G20: Current Year Depreciation (£) | H20: Depn./Tonne (£) | I20: not to be shown
A21: Fixed Equipment / Machinery / Invertors / CIPC Stewardship Costs
E22: =+B22*(1-D22)^(+B$3-C22+1) -> 0 | F22: 1 | G22: =(+(B22*(1-D22)^(+B$3-C22))*D22)*F22 -> 0 | H22: =IFERROR(G22/$F$2,0) -> 0
E23: 0 | F23: 1 | G23: 0 | H23: 0
E24: 0 | F24: 1 | G24: 0 | H24: 0
E25: 0 | F25: 1 | G25: 0 | H25: 0
E26: 0 | F26: 1 | G26: 0 | H26: 0
E27: 0 | G27: 0 | H27: 0
E28: 0 | G28: 0 | H28: 0
E29: 0 | G29: 0 | H29: 0
E30: 0 | G30: 0 | H30: 0
E31: 0 | G31: 0 | H31: 0
E32: 0 | G32: 0 | H32: 0
E33: 0 | G33: 0 | H33: 0
E34: 0 | G34: 0 | H34: 0
F35: Total Depn. | G35: =SUM(G22:G34) -> 0 | H35: 0
A36: Boxes
E37: 0 | F37: 1 | G37: 0 | H37: =IFERROR(G37/$F$2,0) -> 0
E38: 0 | F38: 1 | G38: 0 | H38: 0
E39: 0 | F39: 1 | G39: 0 | H39: 0
E40: 0 | F40: 1 | G40: 0 | H40: 0
E41: 0 | F41: 1 | G41: 0 | H41: 0
E42: 0 | F42: 1 | G42: 0 | H42: 0
E43: 0 | F43: 1 | G43: 0 | H43: 0
E44: 0 | F44: 1 | G44: 0 | H44: 0
E45: 0 | G45: 0 | H45: 0
E46: 0 | G46: 0 | H46: 0
E47: 0 | G47: 0 | H47: 0
E48: 0 | G48: 0 | H48: 0
E49: 0 | G49: 0 | H49: 0
E50: 0 | G50: 0 | H50: 0
E51: 0 | G51: 0 | H51: 0
E52: 0 | G52: 0 | H52: 0
A53: Total | B53: =SUM(B5:B52) -> 0 | F53: Total Depn. | G53: =SUM(G37:G52) -> 0 | H53: 0
